bitfinex/quotes_BTCUSD_20250225
["timestamp","ask_amount","ask_price","bid_price","bid_amount"]
[1740516886992,0.21668993,88301.0,88300.0,0.09095624]
[1740516887656,0.21368993,88301.0,88300.0,0.09095624]
[1740516887865,0.04381693,88301.0,88300.0,0.09095624]
[1740516888041,0.21468993,88301.0,88300.0,0.09095624]
[1740516888244,0.21568993,88301.0,88300.0,0.09095624]
[1740516888445,0.21068993,88301.0,88300.0,0.09095624]
[1740516888648,0.21068993,88301.0,88300.0,0.0008496]
[1740516888987,0.21168993,88301.0,88300.0,0.09095624]
[1740516889578,0.20968993,88301.0,88300.0,0.09095624]
[1740516889776,0.21068993,88301.0,88300.0,0.09095624]
[1740516889983,0.21168993,88301.0,88300.0,0.09095624]
[1740516890404,0.22327417,88301.0,88300.0,0.0008496]
[1740516890631,0.21068993,88301.0,88300.0,0.0008496]
[1740516890821,0.21268993,88301.0,88300.0,0.0008496]
[1740516891327,0.03981693,88301.0,88300.0,0.0008496]
[1740516891554,0.51168993,88301.0,88300.0,0.0008496]
[1740516891757,0.002,88301.0,88300.0,0.09095624]
[1740516892181,0.50988494,88301.0,88300.0,0.09095624]
[1740516892664,0.50888494,88301.0,88300.0,0.09095624]
[1740516892874,0.50788494,88301.0,88300.0,0.09095624]
[1740516893088,0.50788494,88301.0,88300.0,0.09595624]
[1740516893300,0.50788494,88301.0,88300.0,0.09995624]
[1740516893653,0.50788494,88301.0,88300.0,0.09595624]
[1740516893867,0.50888494,88301.0,88300.0,0.09595624]
[1740516894040,0.33901194,88301.0,88300.0,0.09595624]
[1740516894246,0.50388494,88301.0,88300.0,0.09595624]
[1740516894477,0.50288494,88301.0,88300.0,0.09595624]
[1740516894826,0.50288494,88301.0,88300.0,0.17415624]
[1740516894827,0.03301194,88301.0,88300.0,0.17415624]
[1740516895006,0.469854,88311.0,88310.0,0.09010664]
[1740516895138,0.3293,88346.0,88320.0,0.09010664]
[1740516895355,0.0256,88360.0,88321.0,0.09010664]
[1740516895356,0.01050087,88345.0,88321.0,0.09010664]
[1740516895556,0.169833,88322.0,88321.0,0.09010664]
[1740516895889,0.469833,88322.0,88321.0,0.09010664]
[1740516896455,0.22637,88351.0,88333.0,0.09010664]
[1740516896652,0.16981,88334.0,88333.0,0.09010664]
[1740516896881,0.00012649,88343.0,88333.0,0.09010664]
[1740516897007,0.169802,88339.0,88338.0,0.09010664]
[1740516897211,0.3,88339.0,88338.0,0.09010664]
[1740516897682,0.00012649,88343.0,88338.0,0.09010664]
[1740516897683,0.00012649,88343.0,88342.0,0.09010664]
[1740516897818,0.00012649,88343.0,88342.0,0.08710664]
[1740516898167,0.16991849,88343.0,88342.0,0.08710664]
[1740516898314,0.1698,88339.0,88338.0,0.3271]
[1740516898514,0.1698,88339.0,88338.0,0.41620664]
[1740516898999,0.19240408,88341.0,88338.0,0.3291]
[1740516899225,0.4698,88339.0,88338.0,0.004]
[1740516899584,0.4698,88339.0,88338.0,0.006]
[1740516899760,0.478295,88339.0,88338.0,0.006]
[1740516900352,0.3,88339.0,88338.0,0.006]
[1740516900554,0.3,88339.0,88338.0,0.09310664]
[1740516900757,0.00012649,88343.0,88342.0,0.08710664]
[1740516900984,0.16991849,88343.0,88342.0,0.08710664]
[1740516901324,0.46991849,88343.0,88342.0,0.08710664]
[1740516901475,0.46991849,88343.0,88338.0,0.004]
[1740516901476,0.46650564,88339.0,88338.0,0.09110664]
[1740516901799,0.302,88339.0,88338.0,0.08710664]
[1740516901998,0.3,88339.0,88338.0,0.08710664]
[1740516902347,0.4698,88339.0,88338.0,0.08710664]
[1740516902615,0.3,88339.0,88338.0,0.08710664]
[1740516903185,0.00212649,88343.0,88342.0,0.08710664]
[1740516904183,0.00012649,88343.0,88342.0,0.24985417]
[1740516904622,0.30012649,88343.0,88342.0,0.13810664]
[1740516905022,0.30012649,88343.0,88342.0,0.13710664]
[1740516905411,0.30012649,88343.0,88342.0,0.14410664]
[1740516905768,0.30012649,88343.0,88342.0,0.14310664]
[1740516906350,0.30012649,88343.0,88342.0,0.46820664]
[1740516906351,0.00012649,88343.0,88342.0,0.46820664]
[1740516906575,0.00012649,88343.0,88342.0,0.54570664]
[1740516906804,0.00012649,88343.0,88342.0,0.53870664]
[1740516906976,0.00012649,88343.0,88342.0,0.4586]
[1740516907188,0.16991849,88343.0,88342.0,0.3811]
[1740516907548,0.17091849,88343.0,88342.0,0.3321]
[1740516907741,0.17091849,88343.0,88342.0,0.3391]
[1740516907963,0.17161389,88343.0,88342.0,0.3321]
[1740516908190,0.17261389,88343.0,88342.0,0.3321]
[1740516908524,0.00282189,88343.0,88342.0,0.58900064]
[1740516908676,0.00282189,88343.0,88342.0,0.53295417]
[1740516909258,0.00282189,88343.0,88342.0,0.53695417]
[1740516909457,0.00182189,88343.0,88342.0,0.53295417]
[1740516910070,0.17161389,88343.0,88342.0,0.41920664]
[1740516910283,0.17161389,88343.0,88342.0,0.3321]
[1740516910529,0.47161389,88343.0,88342.0,0.3251]
[1740516910735,0.47161389,88343.0,88339.0,0.0008477]
[1740516910736,0.469798,88340.0,88339.0,0.0008477]
[1740516912080,0.470798,88340.0,88339.0,0.0068477]
[1740516912208,0.479195,88340.0,88339.0,0.0068477]
[1740516912414,0.481195,88340.0,88339.0,0.0008477]
[1740516912825,0.485195,88340.0,88339.0,0.0008477]
[1740516913644,0.013397,88340.0,88310.0,0.1243]
[1740516913803,0.169854,88311.0,88310.0,0.13270664]
[1740516914005,0.169854,88311.0,88310.0,0.08710664]
[1740516914006,0.469854,88311.0,88310.0,0.08710664]
[1740516914218,0.3,88303.0,88302.0,0.08710664]
[1740516914450,0.169869,88303.0,88302.0,0.08710664]
[1740516914652,0.469869,88303.0,88302.0,0.08710664]
[1740516914851,0.3,88303.0,88302.0,0.08710664]
[1740516915083,0.469869,88303.0,88296.0,0.048]
[1740516915309,0.3,88303.0,88302.0,0.08710664]
[1740516915461,0.469869,88303.0,88302.0,0.08710664]
[1740516915699,0.34646431,88303.0,88302.0,0.09010664]
[1740516915924,0.169873,88301.0,88296.0,0.048]
[1740516916168,0.51633331,88303.0,88302.0,0.08710664]
[1740516916412,0.57295731,88303.0,88300.0,0.08795624]
[1740516916649,0.51733331,88303.0,88302.0,0.08810664]
[1740516916884,0.34746431,88303.0,88302.0,0.08810664]
[1740516917112,0.51833331,88303.0,88302.0,0.001]
[1740516917330,0.51833331,88303.0,88302.0,0.08810664]
[1740516917526,0.51733331,88303.0,88302.0,0.08810664]
[1740516917766,0.51833331,88303.0,88302.0,0.08810664]
[1740516917988,0.51733331,88303.0,88302.0,0.08710664]
[1740516918344,0.51833331,88303.0,88302.0,0.08710664]
[1740516918748,0.34846431,88303.0,88302.0,0.08710664]
[1740516919070,0.51833331,88303.0,88302.0,0.08710664]
[1740516919589,0.51733331,88303.0,88302.0,0.08710664]
[1740516919951,0.5307893,88303.0,88302.0,0.001]
[1740516920150,0.64464626,88303.0,88302.0,0.001]
[1740516920335,0.5157893,88303.0,88302.0,0.0008477]
[1740516920744,0.50333331,88303.0,88302.0,0.0008477]
[1740516920939,0.33146431,88303.0,88302.0,0.0008477]
[1740516921161,0.50033331,88303.0,88302.0,0.0008477]
[1740516921365,0.04546431,88303.0,88302.0,0.08795434]
[1740516921578,0.169856,88310.0,88302.0,0.16495434]
[1740516921779,0.169846,88315.0,88314.0,0.08710664]
[1740516921984,0.0116866,88315.0,88302.0,0.0008477]
[1740516922207,0.01207127,88314.0,88302.0,0.0008477]
[1740516922413,0.169869,88303.0,88302.0,0.0008477]
[1740516922618,0.469869,88303.0,88302.0,0.0008477]
[1740516922833,0.48232499,88303.0,88302.0,0.0008477]
[1740516923050,0.469869,88303.0,88302.0,0.08795434]
[1740516923623,0.470869,88303.0,88302.0,0.08795434]
[1740516923815,0.469869,88303.0,88302.0,0.08795434]
[1740516924947,0.04569458,88310.0,88309.0,0.08710664]
[1740516925291,0.469856,88310.0,88309.0,0.08710664]
[1740516925462,0.3293,88342.0,88309.0,0.08710664]
[1740516925714,0.169846,88315.0,88314.0,0.08710664]
[1740516925881,0.3,88314.0,88313.0,0.08710664]
[1740516926091,0.469848,88314.0,88313.0,0.08710664]
[1740516926603,0.3,88313.0,88312.0,0.08710664]
[1740516926755,0.04673231,88317.0,88316.0,0.08710664]
[1740516926962,0.0804,88357.0,88328.0,0.08710664]
[1740516927307,0.469819,88329.0,88328.0,0.08710664]
[1740516927463,0.226423,88331.0,88316.0,0.32522649]
[1740516927464,0.04713816,88356.0,88329.0,0.08710664]
[1740516927671,0.169815,88331.0,88330.0,0.3251]
[1740516927897,0.226387,88344.0,88330.0,0.3251]
[1740516928095,0.169781,88349.0,88346.0,0.08710664]
[1740516928256,0.04713816,88356.0,88346.0,0.08710664]
[1740516928455,0.04713816,88356.0,88330.0,0.41220664]
[1740516928456,0.169815,88331.0,88330.0,0.41220664]
[1740516928674,0.169815,88331.0,88322.0,0.047]
[1740516928675,0.169822,88328.0,88323.0,0.3251]
[1740516928946,0.05413816,88356.0,88323.0,0.3251]
[1740516928947,0.226418,88332.0,88323.0,0.3251]
[1740516929146,0.169823,88327.0,88326.0,0.08710664]
[1740516929379,0.226364,88353.0,88323.0,0.3251]
[1740516929508,0.169822,88328.0,88323.0,0.3251]
[1740516929723,0.696206,88338.0,88337.0,0.08710664]
[1740516930122,0.696206,88338.0,88323.0,0.3251]
[1740516930123,0.04713816,88356.0,88323.0,0.3251]
[1740516930322,0.169829,88324.0,88323.0,0.3251]
[1740516930523,0.169829,88324.0,88323.0,0.41220664]
[1740516930751,0.169829,88324.0,88323.0,0.3251]
[1740516931330,0.169829,88324.0,88323.0,0.41220664]
[1740516931531,0.170829,88324.0,88323.0,0.3271]
[1740516931728,0.170829,88324.0,88323.0,0.41320664]
[1740516931939,0.001,88324.0,88323.0,0.41320664]
[1740516932149,0.001,88324.0,88323.0,0.41520664]
[1740516932342,0.170829,88324.0,88323.0,0.3281]
[1740516932544,0.1664344,88324.0,88323.0,0.3281]
[1740516933041,0.1664344,88324.0,88323.0,0.3271]
[1740516933244,0.169829,88324.0,88323.0,0.3271]
[1740516933442,0.169829,88324.0,88323.0,0.41220664]
[1740516934155,0.170829,88324.0,88323.0,0.3251]
[1740516934518,0.170829,88324.0,88323.0,0.41520664]
[1740516934710,0.469808,88335.0,88334.0,0.08710664]
[1740516935115,0.169829,88324.0,88323.0,0.3281]
[1740516935518,0.169829,88324.0,88323.0,0.3251]
[1740516935730,0.169829,88324.0,88323.0,0.41220664]
[1740516936142,0.526412,88335.0,88323.0,0.41220664]
[1740516936335,0.169811,88333.0,88332.0,0.08710664]
[1740516938147,0.171811,88333.0,88332.0,0.08710664]
[1740516939400,0.469815,88331.0,88330.0,0.08710664]
[1740516939601,0.228418,88333.0,88308.0,0.0479]
[1740516939602,0.3,88323.0,88308.0,0.0479]
[1740516939775,0.469858,88309.0,88308.0,0.07447926]
[1740516940357,0.469858,88309.0,88308.0,0.04802649]
[1740516940558,0.04560275,88309.0,88308.0,0.18822679]
[1740516940801,0.169831,88323.0,88322.0,0.02645277]
[1740516941155,0.21710411,88323.0,88322.0,0.02545277]
[1740516941505,0.21710411,88323.0,88322.0,0.02445277]
[1740516941746,0.04727311,88323.0,88322.0,0.02445277]
[1740516941958,0.04727311,88323.0,88322.0,0.42465277]
[1740516942126,0.0016982,88356.0,88322.0,0.4012]
[1740516942304,0.169826,88326.0,88325.0,0.02345277]
[1740516942687,0.169822,88328.0,88325.0,0.02345277]
[1740516942913,0.3,88337.0,88336.0,0.02345277]
[1740516943091,0.526405,88337.0,88336.0,0.02345277]
[1740516943281,0.5724138,88337.0,88336.0,0.02345277]
[1740516943482,0.3460088,88337.0,88336.0,0.02345277]
[1740516943679,0.3460088,88337.0,88336.0,0.07305277]
[1740516943680,0.0460088,88337.0,88336.0,0.07305277]
[1740516943932,0.0016954,88339.0,88336.0,0.07305277]
[1740516944097,0.002,88337.0,88336.0,0.07305277]
[1740516944744,0.004,88337.0,88336.0,0.07305277]
[1740516944944,0.002,88337.0,88336.0,0.07305277]
[1740516945381,0.471804,88337.0,88336.0,0.02345277]
[1740516945532,0.469806,88336.0,88335.0,0.02345277]
[1740516945737,0.002,88337.0,88336.0,0.02345277]
[1740516945934,0.3,88336.0,88322.0,0.44957429]
[1740516946133,0.002,88337.0,88335.0,0.02345277]
[1740516946343,0.472804,88337.0,88336.0,0.02745277]
[1740516946655,0.301,88337.0,88335.0,0.02345277]
[1740516946833,0.696216,88336.0,88335.0,0.02345277]
[1740516947332,0.3,88336.0,88335.0,0.02345277]
[1740516947556,0.469806,88336.0,88335.0,0.02345277]
[1740516948496,0.3,88336.0,88335.0,0.02345277]
[1740516948647,0.3,88336.0,88335.0,0.02545277]
[1740516948850,0.469806,88336.0,88335.0,0.02545277]
[1740516949450,0.3,88336.0,88335.0,0.02545277]
[1740516949882,0.3,88336.0,88335.0,0.02645277]
[1740516950638,0.0016954,88339.0,88338.0,0.02345277]
[1740516950853,0.0016954,88339.0,88338.0,1.09384115]
[1740516951056,0.0016954,88339.0,88338.0,1.31174315]
[1740516952237,0.0016954,88339.0,88338.0,1.14194115]
[1740516952457,0.0016954,88339.0,88338.0,1.31174315]
[1740516952638,0.0026954,88339.0,88338.0,1.14594115]
[1740516952862,0.0026954,88339.0,88338.0,0.5948003]
[1740516953085,0.0026954,88339.0,88338.0,1.3032023]
[1740516953258,0.0026954,88339.0,88338.0,1.31774315]
[1740516953466,0.0026954,88339.0,88338.0,1.31574315]
[1740516953678,0.0036954,88339.0,88338.0,1.31874315]
[1740516953825,0.0036954,88339.0,88338.0,1.14894115]
[1740516954016,0.0036954,88339.0,88338.0,1.31874315]
[1740516954216,0.0016954,88339.0,88338.0,1.31174315]
[1740516954416,0.0036954,88339.0,88338.0,1.32374315]
[1740516955712,0.0036954,88339.0,88338.0,1.15394115]
[1740516955933,0.0026954,88339.0,88338.0,1.14894115]
[1740516956106,0.0036954,88339.0,88338.0,1.33342315]
[1740516956976,0.0016982,88356.0,88355.0,0.28466262]
[1740516957173,0.0016982,88356.0,88355.0,1.30641015]
[1740516958502,0.0016982,88356.0,88355.0,1.31241015]
[1740516958665,0.0026982,88356.0,88355.0,1.31241015]
[1740516958876,0.0026982,88356.0,88355.0,1.30641015]
[1740516959238,0.0036982,88356.0,88355.0,1.31741015]
[1740516959582,0.0036982,88356.0,88355.0,1.14264115]
[1740516959827,0.1744652,88356.0,88355.0,0.5985003]
[1740516960030,0.1744652,88356.0,88355.0,0.0593]
[1740516960031,0.0046982,88356.0,88355.0,0.0593]
[1740516960233,0.1744652,88356.0,88355.0,0.03645277]
[1740516960432,0.0046982,88356.0,88355.0,0.03645277]
[1740516960753,0.0036982,88356.0,88355.0,0.19922177]
[1740516960959,0.0016982,88356.0,88355.0,0.15332538]
[1740516961161,0.0016982,88356.0,88355.0,0.37209438]
[1740516961363,0.0016988,88395.0,88381.0,0.02345277]
[1740516961541,0.0016988,88395.0,88389.0,0.19315677]
[1740516961909,0.00212022,88390.0,88389.0,1.36260017]
[1740516962063,0.00212022,88390.0,88389.0,1.19584766]
[1740516962261,0.00212022,88390.0,88389.0,1.18416766]
[1740516962580,0.00212022,88390.0,88389.0,1.19584766]
[1740516962796,0.0016988,88395.0,88392.0,0.02345277]
[1740516962966,0.00182526,88393.0,88392.0,0.77992428]
[1740516963146,0.0016962,88410.0,88409.0,0.06955277]
[1740516963349,0.0016962,88410.0,88409.0,0.19784115]
[1740516964072,0.0016962,88410.0,88409.0,1.06112431]
[1740516964250,0.0016962,88410.0,88409.0,1.54094115]
[1740516964455,0.0016958,88425.0,88424.0,0.12345277]
[1740516964801,0.00182217,88425.0,88424.0,0.8523732]
[1740516965004,0.00182217,88425.0,88424.0,0.86103439]
[1740516965197,0.00182217,88425.0,88424.0,0.76103439]
[1740516965396,0.00182217,88425.0,88424.0,1.72273439]
[1740516965553,0.00182217,88425.0,88424.0,1.72973439]
[1740516965913,0.00282217,88425.0,88424.0,1.72273439]
[1740516966135,0.00282217,88425.0,88424.0,1.5023932]
[1740516966285,0.00282217,88425.0,88424.0,1.49062043]
[1740516966493,0.00282217,88425.0,88424.0,0.3707]
[1740516966687,0.00282217,88425.0,88424.0,0.3777]
[1740516966891,0.00282217,88425.0,88424.0,0.40115277]
[1740516967319,0.00282217,88425.0,88424.0,0.40815277]
[1740516967517,0.00182217,88425.0,88424.0,0.40115277]
[1740516967923,0.00182217,88425.0,88424.0,0.52944115]
[1740516968119,0.00182217,88425.0,88424.0,0.52244115]
[1740516968306,0.00182217,88425.0,88424.0,0.52944115]
[1740516968514,0.00182217,88425.0,88424.0,0.53644115]
[1740516968746,0.00182217,88425.0,88424.0,0.45284753]
[1740516968941,0.00182217,88425.0,88424.0,0.3321]
[1740516969153,0.00182217,88425.0,88424.0,0.014]
[1740516969691,0.00182217,88425.0,88424.0,0.03045277]
[1740516970049,0.00182217,88425.0,88424.0,0.03645277]
[1740516971150,0.00182217,88425.0,88424.0,0.02945277]
[1740516971359,0.00182217,88425.0,88424.0,0.02345277]
[1740516971785,0.00182217,88425.0,88424.0,1.09782418]
[1740516971988,0.00182217,88425.0,88424.0,1.10324115]
[1740516972304,0.00182217,88425.0,88424.0,1.09624115]
[1740516972741,0.00182217,88425.0,88424.0,1.09924115]
[1740516972917,0.00182217,88425.0,88424.0,1.09824115]
[1740516973219,0.00182217,88425.0,88424.0,1.35384115]
[1740516973428,0.0016958,88426.0,88425.0,0.23799362]
[1740516973629,0.0016958,88426.0,88425.0,0.73174115]
[1740516973831,0.0016974,88445.0,88425.0,0.73174115]
[1740516973832,0.15288424,88513.0,88474.0,0.02345277]
[1740516974047,0.15288424,88513.0,88475.0,0.02345277]
[1740516974048,0.00042166,88498.0,88475.0,0.02345277]
[1740516974395,0.00871839,88486.0,88475.0,0.02345277]
[1740516974804,0.00871839,88486.0,88456.0,0.3251]
[1740516974805,0.00871839,88486.0,88473.0,0.02345277]
[1740516975018,0.00871839,88486.0,88475.0,0.02345277]
[1740516975417,0.00871839,88486.0,88475.0,0.02445277]
[1740516975639,0.01071839,88486.0,88475.0,0.002]
[1740516976051,0.01071839,88486.0,88475.0,0.001]
[1740516976052,0.01062189,88486.0,88475.0,0.001]
[1740516976279,0.01062189,88486.0,88469.0,0.02345277]
[1740516976481,0.01062189,88486.0,88442.0,0.02345277]
[1740516976482,0.1,88470.0,88442.0,0.02345277]
[1740516976681,0.1,88465.0,88426.0,0.34855277]
[1740516976889,0.00865457,88450.0,88429.0,0.02345277]
[1740516977093,0.00865457,88450.0,88407.0,0.0471]
[1740516977311,0.1,88446.0,88408.0,0.3251]
[1740516977449,0.3,88449.0,88408.0,0.3251]
[1740516977646,0.4,88447.0,88408.0,0.3251]
[1740516977849,0.1,88444.0,88442.0,0.001]
[1740516978289,0.1,88438.0,88408.0,0.3251]
[1740516978496,0.1,88429.0,88408.0,0.001]
[1740516978738,0.00831846,88418.0,88408.0,0.002]
[1740516978950,0.00831846,88418.0,88408.0,0.001]
[1740516979151,0.00831846,88418.0,88397.0,0.02345277]
[1740516979494,0.00831846,88418.0,88408.0,0.001]
[1740516980647,0.00831846,88418.0,88405.0,0.02345277]
[1740516980861,0.00831846,88418.0,88383.0,0.3251]
[1740516980862,0.00831846,88418.0,88408.0,0.0016928]
[1740516981328,0.04581355,88425.0,88408.0,0.0016928]
[1740516981527,0.002,88418.0,88408.0,0.0016928]
[1740516981729,0.005,88418.0,88408.0,0.0016928]
[1740516982133,0.1,88430.0,88408.0,0.0016928]
[1740516982272,0.0454124,88425.0,88408.0,0.0016928]
[1740516982504,0.01,88425.0,88408.0,0.0016928]
[1740516982700,0.00853213,88410.0,88408.0,0.0016928]
[1740516983276,0.05674494,88425.0,88408.0,0.0016928]
[1740516983670,0.00855427,88415.0,88414.0,0.02345277]
[1740516984231,0.00855427,88415.0,88414.0,0.34855277]
[1740516984633,0.3,88432.0,88414.0,0.34855277]
[1740516984857,0.3,88432.0,88420.0,0.02145277]
[1740516985272,0.04672189,88432.0,88431.0,0.02145277]
[1740516985680,0.00848105,88444.0,88421.0,0.34655277]
[1740516985915,0.04555995,88432.0,88414.0,0.002]
[1740516986092,0.00864281,88414.0,88387.0,0.3251]
[1740516986302,0.30864281,88414.0,88399.0,0.034003]
[1740516986508,0.00864281,88414.0,88390.0,0.02145277]
[1740516987902,0.00864281,88414.0,88400.0,0.02145277]
[1740516988082,0.007,88414.0,88405.0,0.02145277]
[1740516988457,0.014,88414.0,88405.0,0.02145277]
[1740516988831,0.007,88414.0,88405.0,0.02145277]
[1740516989053,0.007,88414.0,88404.0,0.02145277]
[1740516989176,0.04673111,88432.0,88405.0,0.02145277]
[1740516989371,0.004,88414.0,88408.0,0.02145277]
[1740516990450,0.004,88414.0,88409.0,0.02145277]
[1740516990601,0.04673111,88432.0,88410.0,0.02145277]
[1740516990804,0.005,88414.0,88410.0,0.02145277]
[1740516991065,0.009,88414.0,88410.0,0.02145277]
[1740516991500,0.004,88414.0,88410.0,0.02145277]
[1740516991660,0.008,88414.0,88410.0,0.02145277]
[1740516991866,0.011,88414.0,88410.0,0.02145277]
[1740516992065,0.00853214,88424.0,88410.0,0.02145277]
[1740516992465,0.004,88414.0,88410.0,0.02145277]
[1740516993518,0.004,88414.0,88411.0,0.3251]
[1740516993731,0.002,88414.0,88411.0,0.3251]
[1740516993885,0.00864282,88427.0,88411.0,0.3251]
[1740516994091,0.002,88414.0,88411.0,0.3251]
[1740516994690,0.002,88414.0,88411.0,0.34655277]
[1740516994890,0.002,88414.0,88413.0,0.02145277]
[1740516996890,0.00851329,88428.0,88417.0,0.02145277]
[1740516997090,0.00851329,88428.0,88418.0,0.02145277]
[1740516997301,0.00851329,88428.0,88411.0,0.3251]
[1740516997302,0.00851329,88428.0,88420.0,0.02145277]
[1740516997558,0.00851329,88428.0,88413.0,0.001]
[1740516997956,0.00851329,88428.0,88419.0,0.02145277]
[1740516998158,0.01451329,88428.0,88419.0,0.02145277]
[1740516998305,0.01951329,88428.0,88419.0,0.02145277]
[1740516998506,0.01351329,88428.0,88419.0,0.02145277]
[1740516999014,0.02251329,88428.0,88419.0,0.02145277]
[1740516999217,0.02251329,88428.0,88413.0,0.00012637]
[1740516999422,0.02251329,88428.0,88419.0,0.02145277]
[1740516999841,0.02251329,88428.0,88413.0,0.00012637]
[1740517000192,0.01751329,88428.0,88419.0,0.02145277]
[1740517000371,0.004,88428.0,88420.0,0.02145277]
[1740517000567,0.005,88428.0,88420.0,0.02145277]
[1740517000727,0.01,88428.0,88420.0,0.02145277]
[1740517000922,0.005,88428.0,88420.0,0.02145277]
[1740517001291,0.01,88428.0,88420.0,0.02145277]
[1740517001485,0.005,88428.0,88420.0,0.02145277]
[1740517001830,0.005,88428.0,88419.0,0.02145277]
[1740517002033,0.005,88428.0,88420.0,0.02145277]
[1740517002971,0.005,88428.0,88413.0,0.32522637]
[1740517002972,0.005,88428.0,88427.0,0.02145277]
[1740517003157,0.01,88428.0,88427.0,0.02145277]
[1740517003353,0.010847,88428.0,88421.0,0.34655277]
[1740517003551,0.010847,88428.0,88421.0,0.3251]
[1740517003812,0.010847,88428.0,88426.0,0.02145277]
[1740517003999,0.005847,88428.0,88421.0,0.3251]
[1740517004201,0.000847,88428.0,88421.0,0.3251]
[1740517004409,0.005847,88428.0,88421.0,0.3251]
[1740517004558,0.005847,88428.0,88405.0,0.0813]
[1740517004559,0.005847,88428.0,88404.0,0.02145277]
[1740517004775,0.0009733,88428.0,88395.0,0.0788]
[1740517004984,0.0009733,88428.0,88409.0,0.02145277]
[1740517005205,0.0009733,88428.0,88404.0,0.02145277]
[1740517005391,0.0009733,88428.0,88409.0,0.02145277]
[1740517005765,0.0059733,88428.0,88409.0,0.02145277]
[1740517006310,0.1,88427.0,88394.0,0.02145277]
[1740517006501,0.00871296,88410.0,88392.0,0.3251]
[1740517006739,0.00871296,88410.0,88398.0,0.02145277]
[1740517007105,0.00871296,88410.0,88400.0,0.02145277]
[1740517007634,0.00871296,88410.0,88392.0,0.3251]
[1740517007842,0.00871296,88410.0,88390.0,0.02145277]
[1740517008009,0.00871296,88410.0,88375.0,0.0761]
[1740517008247,0.00871296,88410.0,88390.0,0.02145277]
[1740517008416,0.1,88400.0,88364.0,0.0761]
[1740517008629,0.1,88397.0,88374.0,0.02145277]
[1740517008861,0.1,88397.0,88361.0,0.30195443]
[1740517009082,0.34,88396.0,88367.0,0.02145277]
[1740517009273,0.34,88396.0,88372.0,0.02145277]
[1740517009484,0.00556796,88391.0,88368.0,0.02145277]
[1740517009619,0.00556796,88391.0,88372.0,0.02145277]
[1740517009816,0.00556796,88391.0,88372.0,0.02187459]
[1740517010806,0.01156796,88391.0,88372.0,0.02187459]
[1740517011125,0.01156796,88391.0,88375.0,0.02145277]
[1740517011348,0.469729,88376.0,88375.0,0.02145277]
[1740517011558,0.29,88376.0,88375.0,0.02145277]
[1740517011937,0.459729,88376.0,88375.0,0.02145277]
[1740517012137,0.29,88376.0,88375.0,0.02145277]
[1740517012492,0.29,88376.0,88372.0,0.00042182]
[1740517012493,0.04621604,88376.0,88372.0,0.00042182]
[1740517012737,0.159735,88373.0,88372.0,0.00042182]
[1740517012919,0.04621604,88376.0,88346.0,0.0452]
[1740517012920,0.169767,88356.0,88352.0,0.02145277]
[1740517013056,0.169767,88356.0,88350.0,0.30195443]
[1740517013272,0.169767,88356.0,88355.0,0.0016944]
[1740517013875,0.469767,88356.0,88355.0,0.0016944]
[1740517016159,0.469767,88356.0,88355.0,0.02314717]
[1740517016160,0.3,88356.0,88355.0,0.02314717]
[1740517016569,0.3,88356.0,88355.0,0.02274717]
[1740517017341,0.469767,88356.0,88355.0,0.02274717]
[1740517018007,0.470767,88356.0,88355.0,0.02274717]
[1740517018341,0.471767,88356.0,88355.0,0.02274717]
[1740517020412,0.302,88356.0,88355.0,0.02274717]
[1740517021190,0.002,88356.0,88355.0,0.40340455]
[1740517021395,0.002,88356.0,88355.0,0.28233555]
[1740517022053,0.002,88356.0,88355.0,0.2677947]
[1740517022443,0.001,88356.0,88355.0,0.2677947]
[1740517022820,0.002,88356.0,88355.0,0.2697947]
[1740517023026,0.002,88356.0,88355.0,0.45410455]
[1740517023231,0.04683403,88376.0,88372.0,0.02145277]
[1740517023375,0.04683403,88376.0,88372.0,0.10405277]
[1740517023782,0.226252,88397.0,88372.0,0.2168003]
[1740517023983,0.3,88392.0,88372.0,0.15263666]
[1740517024181,0.30042096,88373.0,88356.0,0.048]
[1740517024383,0.3,88372.0,88357.0,0.11374753]
[1740517024588,0.3,88369.0,88356.0,0.048]
[1740517024822,0.3,88369.0,88362.0,0.02145277]
[1740517024991,0.469763,88358.0,88357.0,0.02145277]
[1740517026934,0.301,88358.0,88357.0,0.02545277]
[1740517027494,0.470763,88358.0,88357.0,0.02545277]
[1740517028105,0.470763,88358.0,88357.0,0.004]
[1740517028326,0.471763,88358.0,88357.0,0.007]
[1740517028535,0.471763,88358.0,88357.0,0.02845277]
[1740517028536,0.302,88358.0,88357.0,0.02845277]
[1740517028906,0.301,88358.0,88357.0,0.02445277]
[1740517029121,0.3,88358.0,88357.0,0.02145277]
[1740517029327,0.3,88358.0,88357.0,0.1372003]
[1740517029531,0.3,88358.0,88357.0,0.1362003]
[1740517031453,0.3,88358.0,88357.0,0.1352003]
[1740517031874,0.301,88358.0,88357.0,0.1352003]
[1740517032078,0.301,88358.0,88357.0,0.13678463]
[1740517032280,0.001,88358.0,88357.0,0.44300615]
[1740517032626,0.001,88358.0,88357.0,0.44700615]
[1740517032627,0.002,88358.0,88357.0,0.44700615]
[1740517032828,0.002,88358.0,88357.0,0.45864615]
[1740517033224,0.00126846,88373.0,88372.0,0.09655277]
[1740517033881,0.00126846,88373.0,88372.0,0.09555277]
[1740517034546,0.16739978,88381.0,88380.0,0.01945277]
[1740517034736,0.39369378,88381.0,88380.0,0.01957923]
[1740517035289,0.469721,88380.0,88379.0,0.01857923]
[1740517035549,0.526294,88381.0,88380.0,0.06557923]
[1740517035550,0.00012623,88381.0,88380.0,0.06557923]
[1740517035712,0.00012623,88381.0,88380.0,0.25612676]
[1740517036530,0.00012623,88381.0,88380.0,0.42484776]
[1740517036731,0.00012623,88381.0,88380.0,0.43938861]
[1740517036936,0.000847,88428.0,88427.0,0.01757923]
[1740517037141,0.21768497,88428.0,88427.0,0.01757923]
[1740517037341,0.17059522,88428.0,88427.0,0.01757923]
[1740517037791,0.47059522,88428.0,88427.0,0.01757923]
[1740517037990,0.17059522,88428.0,88427.0,0.01757923]
[1740517038224,0.04815282,88428.0,88427.0,0.01757923]
[1740517038354,0.00096622,88428.0,88427.0,0.01757923]
[1740517038703,0.17059522,88428.0,88427.0,0.01757923]
[1740517038859,0.00096622,88428.0,88427.0,0.02157923]
[1740517039470,0.00096622,88428.0,88427.0,0.01757923]
[1740517039894,0.00096622,88428.0,88427.0,0.02357923]
[1740517041122,0.00096622,88428.0,88427.0,0.03057923]